[Event "GrandPrix_29.05"]
[Site "Chess.com"]
[Date "2020.05.29"]
[Round "1"]
[White "MilanovicDan"]
[Black "SmirnovTimofey2000"]
[Result "1-0"]
[WhiteElo "2707"]
[BlackElo "2188"]
[TimeControl "600+2"]
[EndTime "9:24:01 PDT"]
[Termination "MilanovicDan won by resignation"]

1. d4 {[%clk 0:10:00.7]} 1... d5 {[%clk 0:09:58.1]} 2. c4 {[%clk 0:10:00.5]}
2... c6 {[%clk 0:09:54.8]} 3. Nc3 {[%clk 0:09:57]} 3... Nf6 {[%clk 0:09:53]} 4.
e3 {[%clk 0:09:56.8]} 4... Bf5 {[%clk 0:09:44.6]} 5. Nf3 {[%clk 0:09:55]} 5...
e6 {[%clk 0:09:44.9]} 6. Qb3 {[%clk 0:09:55.4]} 6... Qc7 {[%clk 0:09:40.2]} 7.
Bd2 {[%clk 0:09:54.8]} 7... Nbd7 {[%clk 0:09:15.9]} 8. Rc1 {[%clk 0:09:54.6]}
8... Qb6 {[%clk 0:09:14.9]} 9. Be2 {[%clk 0:09:50.5]} 9... h6 {[%clk 0:08:42.9]}
10. O-O {[%clk 0:09:48.3]} 10... Qxb3 {[%clk 0:08:31.5]} 11. axb3 {[%clk
0:09:48.7]} 11... Bb4 {[%clk 0:08:31.4]} 12. Ne1 {[%clk 0:09:40]} 12... O-O
{[%clk 0:08:23.1]} 13. Nd3 {[%clk 0:09:40.5]} 13... Bd6 {[%clk 0:08:20.3]} 14.
c5 {[%clk 0:08:58.5]} 14... Bc7 {[%clk 0:08:16.3]} 15. b4 {[%clk 0:08:59.1]}
15... a6 {[%clk 0:08:16.3]} 16. f4 {[%clk 0:08:59.1]} 16... Ne4 {[%clk
0:07:47.8]} 17. Be1 {[%clk 0:08:51.3]} 17... f6 {[%clk 0:07:41.7]} 18. g4 {[%clk
0:08:27.5]} 18... Nxc3 {[%clk 0:05:56.6]} 19. bxc3 {[%clk 0:08:24.2]} 19... Be4
{[%clk 0:05:54.6]} 20. Bg3 {[%clk 0:08:13.1]} 20... Bxd3 {[%clk 0:05:31.8]} 21.
Bxd3 {[%clk 0:08:13.3]} 21... f5 {[%clk 0:05:33.2]} 22. gxf5 {[%clk 0:06:44.2]}
22... exf5 {[%clk 0:05:27.9]} 23. Bh4 {[%clk 0:06:43.9]} 23... Rae8 {[%clk
0:03:17.7]} 24. Kf2 {[%clk 0:06:38.1]} 24... g6 {[%clk 0:02:18.6]} 25. c4 {[%clk
0:06:14.7]} 25... Nf6 {[%clk 0:02:09.2]} 26. Bxf6 {[%clk 0:06:14.2]} 26... Rxf6
{[%clk 0:02:11.1]} 27. b5 {[%clk 0:06:04.9]} 27... axb5 {[%clk 0:01:23.9]} 28.
cxd5 {[%clk 0:05:55.6]} 28... cxd5 {[%clk 0:01:19.5]} 29. Bxb5 {[%clk
0:05:54.8]} 29... Re7 {[%clk 0:01:06.8]} 30. Rg1 {[%clk 0:04:52.4]} 30... Rfe6
{[%clk 0:00:52.2]} 31. Rc3 {[%clk 0:04:45.5]} 31... Ba5 {[%clk 0:00:33.6]} 32.
Rd3 {[%clk 0:04:24.6]} 32... Kf7 {[%clk 0:00:32.4]} 33. Ba4 {[%clk 0:04:20.8]}
33... Kf6 {[%clk 0:00:18.9]} 34. h4 {[%clk 0:04:16.5]} 34... Bd8 {[%clk
0:00:09.8]} 35. Kf3 {[%clk 0:03:47.4]} 35... b6 {[%clk 0:00:10.1]} 36. Bb3
{[%clk 0:02:17]} 36... Rd7 {[%clk 0:00:10.6]} 37. c6 {[%clk 0:02:06.1]} 37...
Rdd6 {[%clk 0:00:09.7]} 38. Rd2 {[%clk 0:01:53]} 38... Re7 {[%clk 0:00:08.5]}
39. Rc2 {[%clk 0:01:49.1]} 39... Rc7 {[%clk 0:00:08.7]} 40. Ba4 {[%clk
0:01:49.5]} 40... Ra7 {[%clk 0:00:07.2]} 41. Bb5 {[%clk 0:01:39.9]} 41... Kf7
{[%clk 0:00:08.2]} 42. Rgc1 {[%clk 0:01:27.6]} 42... Bc7 {[%clk 0:00:08.6]} 43.
Rg1 {[%clk 0:01:21.4]} 43... Rd8 {[%clk 0:00:09.2]} 44. h5 {[%clk 0:01:20.5]}
44... Rg8 {[%clk 0:00:09.2]} 45. Bd3 {[%clk 0:01:15]} 45... Kf6 {[%clk
0:00:06.6]} 46. hxg6 {[%clk 0:01:02.4]} 46... Rxg6 {[%clk 0:00:08.5]} 47. Rxg6+
{[%clk 0:01:03]} 47... Kxg6 {[%clk 0:00:10.4]} 48. Rg2+ {[%clk 0:01:02.7]} 48...
Kf6 {[%clk 0:00:11.6]} 49. Rh2 {[%clk 0:01:03.2]} 49... Kg6 {[%clk 0:00:12.7]}
50. Rg2+ {[%clk 0:01:03.3]} 50... Kf6 {[%clk 0:00:13.9]} 51. Rg8 {[%clk
0:01:02.4]} 51... Bd6 {[%clk 0:00:13.7]} 52. Rh8 {[%clk 0:00:57.7]} 52... Kg6
{[%clk 0:00:11.3]} 53. Rd8 {[%clk 0:00:58.3]} 53... Bb4 {[%clk 0:00:09.1]} 54.
Rxd5 {[%clk 0:00:58.6]} 54... Rc7 {[%clk 0:00:09.8]} 55. Bxf5+ {[%clk
0:00:59.4]} 55... Kf6 {[%clk 0:00:09.7]} 56. Bd7 {[%clk 0:01:00]} 1-0

[Event "GrandPrix_29.05"]
[Site "Chess.com"]
[Date "2020.05.29"]
[Round "1"]
[White "DarkAlekhine"]
[Black "ftorodent"]
[Result "1-0"]
[WhiteElo "2466"]
[BlackElo "1934"]
[TimeControl "600+2"]
[EndTime "9:24:01 PDT"]
[Termination "DarkAlekhine won by resignation"]

1. Nf3 {[%clk 0:09:59.2]} 1... d5 {[%clk 0:09:59.6]} 2. g3 {[%clk 0:09:59.7]}
2... c6 {[%clk 0:09:57.4]} 3. Bg2 {[%clk 0:10:00.1]} 3... Bg4 {[%clk 0:09:57.4]}
4. O-O {[%clk 0:09:59]} 4... Nd7 {[%clk 0:09:58]} 5. d3 {[%clk 0:09:59.7]} 5...
Ngf6 {[%clk 0:09:57.6]} 6. Nbd2 {[%clk 0:10:00]} 6... e5 {[%clk 0:09:58.2]} 7.
h3 {[%clk 0:10:00.5]} 7... Bh5 {[%clk 0:09:57.9]} 8. e4 {[%clk 0:10:01.6]} 8...
Bd6 {[%clk 0:09:54.8]} 9. exd5 {[%clk 0:10:01.7]} 9... cxd5 {[%clk 0:09:55.6]}
10. c4 {[%clk 0:10:03.1]} 10... O-O {[%clk 0:09:49.4]} 11. cxd5 {[%clk
0:09:35.1]} 11... Nxd5 {[%clk 0:09:43.6]} 12. Nc4 {[%clk 0:09:16.6]} 12... Bc7
{[%clk 0:09:37.5]} 13. Re1 {[%clk 0:08:44.1]} 13... Re8 {[%clk 0:09:25.6]} 14.
Qb3 {[%clk 0:07:07.5]} 14... N5b6 {[%clk 0:07:09.7]} 15. Bg5 {[%clk 0:06:44.8]}
15... Qb8 {[%clk 0:07:04.1]} 16. Be3 {[%clk 0:05:11.6]} 16... Nxc4 {[%clk
0:06:22]} 17. Qxc4 {[%clk 0:05:04.3]} 17... Bb6 {[%clk 0:05:49.3]} 18. Ng5
{[%clk 0:04:39.4]} 18... Bxe3 {[%clk 0:04:48.6]} 19. Rxe3 {[%clk 0:04:41.3]}
19... Qd6 {[%clk 0:04:47.1]} 20. Bxb7 {[%clk 0:04:26.2]} 20... Rab8 {[%clk
0:04:44.2]} 21. Be4 {[%clk 0:03:19.6]} 21... Nf6 {[%clk 0:04:12.9]} 22. Rc1
{[%clk 0:03:03.8]} 22... h6 {[%clk 0:03:54]} 23. Nf3 {[%clk 0:03:00.9]} 23...
Nxe4 {[%clk 0:03:43.5]} 24. Qxe4 {[%clk 0:02:17.4]} 24... Rb4 {[%clk 0:02:35.2]}
25. Qc6 {[%clk 0:01:57.7]} 25... Qxc6 {[%clk 0:02:31.2]} 26. Rxc6 {[%clk
0:01:59.6]} 26... Rxb2 {[%clk 0:02:14]} 27. g4 {[%clk 0:01:52.7]} 27... Bg6
{[%clk 0:01:46.9]} 28. Nxe5 {[%clk 0:01:32.6]} 28... Rxa2 {[%clk 0:01:29.1]} 29.
Nxg6 {[%clk 0:01:32.8]} 29... Rxe3 {[%clk 0:01:29.3]} 30. Rc8+ {[%clk
0:01:33.7]} 30... Kh7 {[%clk 0:01:29.8]} 31. Nf8+ {[%clk 0:01:34.8]} 31... Kg8
{[%clk 0:01:30.6]} 32. fxe3 {[%clk 0:01:36]} 32... a5 {[%clk 0:01:18.5]} 33.
Nd7+ {[%clk 0:01:34.6]} 33... Kh7 {[%clk 0:01:18.9]} 34. Ra8 {[%clk 0:01:31.2]}
34... a4 {[%clk 0:01:18.3]} 35. Nb6 {[%clk 0:01:20.1]} 35... a3 {[%clk
0:01:08.1]} 36. Nc4 {[%clk 0:01:21.1]} 36... Ra1+ {[%clk 0:01:07.9]} 37. Kg2
{[%clk 0:01:22.1]} 37... a2 {[%clk 0:01:08.3]} 38. Nd6 {[%clk 0:01:14.8]} 38...
Kg6 {[%clk 0:01:01.6]} 39. Ne4 {[%clk 0:01:15.8]} 39... h5 {[%clk 0:00:55.2]}
40. gxh5+ {[%clk 0:01:11.8]} 40... Kxh5 {[%clk 0:00:55]} 41. Nc3 {[%clk
0:01:11.5]} 41... Re1 {[%clk 0:00:37]} 42. Rxa2 {[%clk 0:01:10]} 42... Rxe3
{[%clk 0:00:37.9]} 43. Rd2 {[%clk 0:01:11.4]} 43... Kh4 {[%clk 0:00:37.6]} 44.
Ne2 {[%clk 0:01:03.1]} 44... f5 {[%clk 0:00:32]} 45. d4 {[%clk 0:01:02]} 45...
g5 {[%clk 0:00:33.1]} 46. d5 {[%clk 0:01:02.7]} 46... f4 {[%clk 0:00:34.5]} 47.
Ng1 {[%clk 0:01:03]} 47... g4 {[%clk 0:00:18.7]} 48. hxg4 {[%clk 0:01:01.6]}
48... Kxg4 {[%clk 0:00:19.8]} 49. d6 {[%clk 0:01:02.8]} 49... Re8 {[%clk
0:00:20.8]} 50. Nf3 {[%clk 0:01:00.4]} 50... Kf5 {[%clk 0:00:19.2]} 51. d7
{[%clk 0:00:51.9]} 51... Rd8 {[%clk 0:00:18.2]} 52. Rd6 {[%clk 0:00:52.8]} 52...
Ke4 {[%clk 0:00:16.6]} 53. Ng5+ {[%clk 0:00:48.9]} 53... Kf5 {[%clk 0:00:16.3]}
54. Nf7 {[%clk 0:00:49]} 1-0

[Event "GrandPrix_29.05"]
[Site "Chess.com"]
[Date "2020.05.29"]
[Round "1"]
[White "Natalya_Buksa"]
[Black "kotmizer"]
[Result "0-1"]
[WhiteElo "2179"]
[BlackElo "1859"]
[TimeControl "600+2"]
[EndTime "9:24:01 PDT"]
[Termination "kotmizer won by checkmate"]

1. d4 {[%clk 0:09:59.8]} 1... Nf6 {[%clk 0:03:37.6]} 2. Nc3 {[%clk 0:09:58.4]}
2... d5 {[%clk 0:03:36]} 3. Bf4 {[%clk 0:09:58.9]} 3... e6 {[%clk 0:03:34.8]} 4.
e3 {[%clk 0:09:56.6]} 4... a6 {[%clk 0:03:10.9]} 5. Nf3 {[%clk 0:09:56.3]} 5...
Bb4 {[%clk 0:03:11.3]} 6. Bd3 {[%clk 0:09:56.6]} 6... c5 {[%clk 0:03:12.3]} 7.
dxc5 {[%clk 0:09:57.4]} 7... Bxc5 {[%clk 0:03:11.8]} 8. O-O {[%clk 0:09:57.8]}
8... Nc6 {[%clk 0:03:13.1]} 9. e4 {[%clk 0:09:54]} 9... d4 {[%clk 0:03:13.2]}
10. Ne2 {[%clk 0:09:53.7]} 10... Qb6 {[%clk 0:02:56.3]} 11. Rb1 {[%clk
0:09:37.7]} 11... Nh5 {[%clk 0:02:52.7]} 12. b4 {[%clk 0:09:08.4]} 12... Nxf4
{[%clk 0:02:46.2]} 13. Nxf4 {[%clk 0:09:08.8]} 13... Bd6 {[%clk 0:02:46.9]} 14.
Ne2 {[%clk 0:09:08.8]} 14... e5 {[%clk 0:02:41.7]} 15. c3 {[%clk 0:09:09.4]}
15... Bg4 {[%clk 0:02:24.9]} 16. c4 {[%clk 0:08:52]} 16... Bxf3 {[%clk
0:02:16.6]} 17. gxf3 {[%clk 0:08:51.6]} 17... Qd8 {[%clk 0:02:17.7]} 18. Qd2
{[%clk 0:08:46.5]} 18... O-O {[%clk 0:02:07.1]} 19. Kh1 {[%clk 0:08:34]} 19...
Qf6 {[%clk 0:02:01.5]} 20. Kg2 {[%clk 0:08:23.5]} 20... Ne7 {[%clk 0:02:01.4]}
21. Ng3 {[%clk 0:06:53.5]} 21... Ng6 {[%clk 0:02:01.1]} 22. Nf5 {[%clk
0:06:54.5]} 22... Nf4+ {[%clk 0:01:32.9]} 23. Kh1 {[%clk 0:06:54.1]} 23... g6
{[%clk 0:01:11.4]} 24. Rg1 {[%clk 0:06:25.3]} 24... h5 {[%clk 0:01:05.4]} 25.
Nxd6 {[%clk 0:05:19.5]} 25... Qxd6 {[%clk 0:01:05.5]} 26. c5 {[%clk 0:05:20.9]}
26... Qf6 {[%clk 0:01:02.6]} 27. a4 {[%clk 0:05:18.7]} 27... Kh7 {[%clk
0:01:02.8]} 28. Rg3 {[%clk 0:05:15.4]} 28... Rac8 {[%clk 0:01:01.6]} 29. Rc1
{[%clk 0:05:14.3]} 29... Rc7 {[%clk 0:01:00.4]} 30. Bc4 {[%clk 0:05:07.4]} 30...
a5 {[%clk 0:01:00]} 31. Bb5 {[%clk 0:03:49.9]} 31... Rfc8 {[%clk 0:00:59.8]} 32.
Rgg1 {[%clk 0:01:51.4]} 32... axb4 {[%clk 0:00:58.4]} 33. Qxb4 {[%clk
0:01:52.2]} 33... Qe7 {[%clk 0:00:37.9]} 34. Rc4 {[%clk 0:00:54.5]} 34... Nd3
{[%clk 0:00:34.6]} 35. Qd2 {[%clk 0:00:51.9]} 35... Nxc5 {[%clk 0:00:31.9]} 36.
Rgc1 {[%clk 0:00:52.7]} 36... Ne6 {[%clk 0:00:32.3]} 37. Rxc7 {[%clk 0:00:39.1]}
37... Rxc7 {[%clk 0:00:33.2]} 38. Rxc7 {[%clk 0:00:37.7]} 38... Qxc7 {[%clk
0:00:33.6]} 39. Kg2 {[%clk 0:00:32.2]} 39... Qc3 {[%clk 0:00:28.7]} 40. Qd1
{[%clk 0:00:24.5]} 40... d3 {[%clk 0:00:28.4]} 41. Kg3 {[%clk 0:00:22.4]} 41...
Nf4 {[%clk 0:00:28.1]} 42. Be8 {[%clk 0:00:19]} 42... Qc2 {[%clk 0:00:23]} 43.
Qa1 {[%clk 0:00:19.8]} 43... f6 {[%clk 0:00:19.1]} 44. Qa3 {[%clk 0:00:19.3]}
44... h4+ {[%clk 0:00:14.7]} 45. Kg4 {[%clk 0:00:20.1]} 45... Qc8+ {[%clk
0:00:14.4]} 46. Kxh4 {[%clk 0:00:17]} 46... Qh3# {[%clk 0:00:15]} 0-1

[Event "GrandPrix_29.05"]
[Site "Chess.com"]
[Date "2020.05.29"]
[Round "1"]
[White "Shahinyan_ChessMood"]
[Black "Koalaskakistis"]
[Result "0-1"]
[WhiteElo "1966"]
[BlackElo "2053"]
[TimeControl "600+2"]
[EndTime "9:24:03 PDT"]
[Termination "Koalaskakistis won by checkmate"]

1. e4 {[%clk 0:09:57.7]} 1... c5 {[%clk 0:09:58.9]} 2. Nc3 {[%clk 0:09:58]} 2...
e6 {[%clk 0:09:38.2]} 3. g3 {[%clk 0:09:49]} 3... d5 {[%clk 0:09:38.4]} 4. exd5
{[%clk 0:09:49.3]} 4... exd5 {[%clk 0:09:40.3]} 5. d3 {[%clk 0:09:51.2]} 5...
Nf6 {[%clk 0:09:35.2]} 6. Bg2 {[%clk 0:09:44.8]} 6... d4 {[%clk 0:09:08.1]} 7.
Nce2 {[%clk 0:09:21.3]} 7... Nc6 {[%clk 0:08:59.4]} 8. Nf3 {[%clk 0:09:17.6]}
8... Bd6 {[%clk 0:08:47.1]} 9. O-O {[%clk 0:09:16.4]} 9... O-O {[%clk
0:08:47.6]} 10. Bf4 {[%clk 0:09:12.7]} 10... h6 {[%clk 0:07:24.1]} 11. Qd2
{[%clk 0:08:29.3]} 11... Nd5 {[%clk 0:07:09.9]} 12. Rae1 {[%clk 0:06:58.6]}
12... Be6 {[%clk 0:06:09.3]} 13. Bxd6 {[%clk 0:06:23.4]} 13... Qxd6 {[%clk
0:06:09.2]} 14. Nc1 {[%clk 0:06:25.3]} 14... Rae8 {[%clk 0:05:58.1]} 15. Re2
{[%clk 0:06:19.4]} 15... Re7 {[%clk 0:05:43.3]} 16. Rfe1 {[%clk 0:06:18.4]}
16... Rfe8 {[%clk 0:05:44.5]} 17. Ne5 {[%clk 0:05:59.2]} 17... Nxe5 {[%clk
0:04:32]} 18. Rxe5 {[%clk 0:06:01.1]} 18... Nb4 {[%clk 0:04:15.9]} 19. Nb3
{[%clk 0:04:27.1]} 19... b6 {[%clk 0:04:05]} 20. Nc1 {[%clk 0:03:34.1]} 20... a5
{[%clk 0:03:15.5]} 21. a3 {[%clk 0:03:09.4]} 21... Nc6 {[%clk 0:03:15.2]} 22.
R5e4 {[%clk 0:02:58.6]} 22... a4 {[%clk 0:03:00.3]} 23. Qd1 {[%clk 0:02:01.3]}
23... Bd5 {[%clk 0:02:36.8]} 24. Rxe7 {[%clk 0:02:00.7]} 24... Rxe7 {[%clk
0:02:38.7]} 25. Bxd5 {[%clk 0:01:39.7]} 25... Qxd5 {[%clk 0:02:38]} 26. Rxe7
{[%clk 0:01:27]} 26... Nxe7 {[%clk 0:02:39.9]} 27. c4 {[%clk 0:01:04.7]} 27...
dxc3 {[%clk 0:02:36.7]} 28. bxc3 {[%clk 0:01:06.6]} 28... b5 {[%clk 0:02:37.8]}
29. Qe2 {[%clk 0:00:44.1]} 29... Kf8 {[%clk 0:02:33.2]} 30. c4 {[%clk
0:00:38.3]} 30... bxc4 {[%clk 0:01:57.8]} 31. dxc4 {[%clk 0:00:40.2]} 31... Qd4
{[%clk 0:01:59.5]} 32. Qc2 {[%clk 0:00:41.7]} 32... Qa1 {[%clk 0:01:59.4]} 33.
Qd2 {[%clk 0:00:19.3]} 33... Ke8 {[%clk 0:01:33]} 34. Kg2 {[%clk 0:00:18.6]}
34... Qxa3 {[%clk 0:01:32.3]} 35. Nd3 {[%clk 0:00:20.1]} 35... Nf5 {[%clk
0:00:57.8]} 36. Qe2+ {[%clk 0:00:09.9]} 36... Kf8 {[%clk 0:00:20.8]} 37. Qe4
{[%clk 0:00:11]} 37... Nd4 {[%clk 0:00:18.8]} 38. Qa8+ {[%clk 0:00:08.6]} 38...
Ke7 {[%clk 0:00:19.4]} 39. Qa7+ {[%clk 0:00:08.2]} 39... Kf8 {[%clk 0:00:15.1]}
40. Qb8+ {[%clk 0:00:07.9]} 40... Ke7 {[%clk 0:00:15.9]} 41. Qc7+ {[%clk
0:00:09.3]} 41... Kf6 {[%clk 0:00:08.7]} 42. Qe5+ {[%clk 0:00:04.8]} 42... Kg6
{[%clk 0:00:09.6]} 43. Nxc5 {[%clk 0:00:05]} 43... Qf3+ {[%clk 0:00:09.4]} 44.
Kf1 {[%clk 0:00:06.5]} 44... Qh1# {[%clk 0:00:09.5]} 0-1

[Event "GrandPrix_29.05"]
[Site "Chess.com"]
[Date "2020.05.29"]
[Round "1"]
[White "viktorskliarov"]
[Black "Funo09"]
[Result "1/2-1/2"]
[WhiteElo "2194"]
[BlackElo "2570"]
[TimeControl "600+2"]
[EndTime "9:24:05 PDT"]
[Termination "Game drawn by agreement"]

1. e4 {[%clk 0:09:53.8]} 1... c5 {[%clk 0:09:59.5]} 2. Nf3 {[%clk 0:09:54.7]}
2... Nf6 {[%clk 0:09:59.4]} 3. e5 {[%clk 0:09:55.2]} 3... Nd5 {[%clk 0:10:00.4]}
4. Nc3 {[%clk 0:09:56.9]} 4... e6 {[%clk 0:10:01.2]} 5. Nxd5 {[%clk 0:09:58.1]}
5... exd5 {[%clk 0:10:03.1]} 6. d4 {[%clk 0:09:59.7]} 6... Nc6 {[%clk
0:10:04.1]} 7. dxc5 {[%clk 0:10:00.4]} 7... Bxc5 {[%clk 0:10:06]} 8. c3 {[%clk
0:10:01.8]} 8... d6 {[%clk 0:09:39.8]} 9. b4 {[%clk 0:08:46]} 9... Bb6 {[%clk
0:09:16.3]} 10. Qxd5 {[%clk 0:08:37.1]} 10... dxe5 {[%clk 0:08:13]} 11. Qxd8+
{[%clk 0:08:08.9]} 11... Bxd8 {[%clk 0:08:14.9]} 12. b5 {[%clk 0:08:02.5]} 12...
Na5 {[%clk 0:08:00.7]} 13. Nxe5 {[%clk 0:07:47.1]} 13... O-O {[%clk 0:07:57.2]}
14. Nc4 {[%clk 0:06:31.3]} 14... Bf6 {[%clk 0:07:12.9]} 15. Bd2 {[%clk
0:06:26.8]} 15... Re8+ {[%clk 0:07:06.8]} 16. Kd1 {[%clk 0:06:27.3]} 16... Nxc4
{[%clk 0:06:48.4]} 17. Bxc4 {[%clk 0:06:26.2]} 17... Bf5 {[%clk 0:06:44.3]} 18.
Rc1 {[%clk 0:05:20.1]} 18... Rad8 {[%clk 0:06:34.5]} 19. Re1 {[%clk 0:05:16.7]}
19... Be4 {[%clk 0:05:58.7]} 20. f3 {[%clk 0:04:26.6]} 20... Bg5 {[%clk
0:05:58.4]} 21. Rxe4 {[%clk 0:03:40.4]} 21... Rxd2+ {[%clk 0:05:56.2]} 22. Ke1
{[%clk 0:03:34.7]} 22... Rxe4+ {[%clk 0:04:56.8]} 23. fxe4 {[%clk 0:03:35.4]}
23... Rxg2 {[%clk 0:04:55.6]} 24. Rd1 {[%clk 0:03:30.4]} 24... Bh4+ {[%clk
0:04:17.9]} 25. Kf1 {[%clk 0:03:28.5]} 25... Rxh2 {[%clk 0:04:14.2]} 26. Rd7
{[%clk 0:03:24.9]} 26... Rf2+ {[%clk 0:03:38.7]} 27. Kg1 {[%clk 0:03:24.4]}
27... h5 {[%clk 0:03:28.9]} 28. Rxb7 {[%clk 0:03:00.9]} 28... Rf6 {[%clk
0:01:10.6]} 29. e5 {[%clk 0:02:29.9]} 29... Rf4 {[%clk 0:01:11.6]} 30. Bd5
{[%clk 0:01:37.7]} 30... Bf2+ {[%clk 0:00:42]} 31. Kg2 {[%clk 0:01:31.8]} 31...
Bc5 {[%clk 0:00:40.4]} 32. a4 {[%clk 0:01:19.1]} 32... g5 {[%clk 0:00:40.9]} 33.
a5 {[%clk 0:00:50.4]} 33... h4 {[%clk 0:00:27.8]} 34. b6 {[%clk 0:00:42.7]}
34... axb6 {[%clk 0:00:29.7]} 35. a6 {[%clk 0:00:43.5]} 35... b5 {[%clk
0:00:17.5]} 36. a7 {[%clk 0:00:26.3]} 36... Bxa7 {[%clk 0:00:18.5]} 37. Rxa7
{[%clk 0:00:27.5]} 37... g4 {[%clk 0:00:17.8]} 38. Rb7 {[%clk 0:00:16]} 38... g3
{[%clk 0:00:09.6]} 39. Bf3 {[%clk 0:00:16.3]} 39... Rc4 {[%clk 0:00:07.4]} 40.
Rxb5 {[%clk 0:00:09.7]} 40... Rxc3 {[%clk 0:00:08.6]} 41. Rb2 {[%clk 0:00:10.2]}
41... Re3 {[%clk 0:00:09.1]} 42. Re2 {[%clk 0:00:10.7]} 42... Rxe2+ {[%clk
0:00:09.7]} 43. Bxe2 {[%clk 0:00:12]} 43... Kf8 {[%clk 0:00:11]} 44. Kh3 {[%clk
0:00:12.9]} 44... Ke7 {[%clk 0:00:11.9]} 45. Bf3 {[%clk 0:00:12.1]} 45... Ke6
{[%clk 0:00:12.7]} 46. Kxh4 {[%clk 0:00:13.6]} 46... Kxe5 {[%clk 0:00:14]} 47.
Kxg3 {[%clk 0:00:14.9]} 47... Kf5 {[%clk 0:00:15.3]} 48. Kf2 {[%clk 0:00:16.4]}
1/2-1/2

[Event "GrandPrix_29.05"]
[Site "Chess.com"]
[Date "2020.05.29"]
[Round "1"]
[White "BlackBoarder"]
[Black "Durarbayli"]
[Result "0-1"]
[WhiteElo "2180"]
[BlackElo "2672"]
[TimeControl "600+2"]
[EndTime "9:24:10 PDT"]
[Termination "Durarbayli won by resignation"]

1. e4 {[%clk 0:09:56.4]} 1... e5 {[%clk 0:09:39.3]} 2. Nf3 {[%clk 0:09:55.8]}
2... Nc6 {[%clk 0:09:39.6]} 3. d4 {[%clk 0:09:42.2]} 3... exd4 {[%clk
0:09:32.2]} 4. Bc4 {[%clk 0:09:42.1]} 4... Bc5 {[%clk 0:08:47]} 5. Ng5 {[%clk
0:09:34.5]} 5... Nh6 {[%clk 0:07:11.8]} 6. Nxf7 {[%clk 0:09:23.2]} 6... Nxf7
{[%clk 0:07:05.1]} 7. Bxf7+ {[%clk 0:09:23]} 7... Kxf7 {[%clk 0:07:06.6]} 8.
Qh5+ {[%clk 0:09:24.3]} 8... g6 {[%clk 0:06:48.3]} 9. Qd5+ {[%clk 0:09:15.4]}
9... Ke8 {[%clk 0:06:42.1]} 10. Qxc5 {[%clk 0:09:13.2]} 10... d6 {[%clk
0:06:15.1]} 11. Qc4 {[%clk 0:08:06.7]} 11... Qe7 {[%clk 0:06:12.8]} 12. O-O
{[%clk 0:08:02.1]} 12... Qxe4 {[%clk 0:05:23.3]} 13. Nc3 {[%clk 0:07:13.2]}
13... Be6 {[%clk 0:05:01]} 14. Qa4 {[%clk 0:06:51.6]} 14... Qf5 {[%clk
0:04:03.4]} 15. Nb5 {[%clk 0:06:38.9]} 15... Kd7 {[%clk 0:04:03.7]} 16. Nxd4
{[%clk 0:05:05.2]} 16... Qe4 {[%clk 0:03:44.6]} 17. Rd1 {[%clk 0:04:55.3]} 17...
Rhe8 {[%clk 0:03:18.2]} 18. f3 {[%clk 0:04:22]} 18... Qe5 {[%clk 0:02:33.2]} 19.
Nxc6 {[%clk 0:03:51.1]} 19... bxc6 {[%clk 0:02:35.1]} 20. Bf4 {[%clk 0:03:07.6]}
20... Qc5+ {[%clk 0:01:56.1]} 21. Qd4 {[%clk 0:02:56.1]} 21... Qxd4+ {[%clk
0:01:56]} 22. Rxd4 {[%clk 0:02:55.7]} 22... c5 {[%clk 0:01:57.9]} 23. Rd2 {[%clk
0:02:34.5]} 23... a5 {[%clk 0:01:58.8]} 24. Kf2 {[%clk 0:01:57.5]} 24... a4
{[%clk 0:01:55.1]} 25. Re2 {[%clk 0:01:23.8]} 25... Bc4 {[%clk 0:01:52.3]} 26.
Re3 {[%clk 0:01:24.5]} 26... Reb8 {[%clk 0:01:24.5]} 27. Rc3 {[%clk 0:00:56.2]}
27... Be6 {[%clk 0:01:00.6]} 28. Bc1 {[%clk 0:00:55.2]} 28... g5 {[%clk
0:00:44.6]} 29. h3 {[%clk 0:00:50.7]} 29... h6 {[%clk 0:00:40.3]} 30. Ra3 {[%clk
0:00:51.2]} 30... Bf5 {[%clk 0:00:38.1]} 31. Rc3 {[%clk 0:00:42]} 31... Be6
{[%clk 0:00:38.4]} 32. Ra3 {[%clk 0:00:42.2]} 32... Bf5 {[%clk 0:00:34.6]} 33.
Rc3 {[%clk 0:00:42.5]} 33... Kc6 {[%clk 0:00:34.2]} 34. Rb1 {[%clk 0:00:39.1]}
34... Be6 {[%clk 0:00:29.7]} 35. b3 {[%clk 0:00:38.1]} 35... axb3 {[%clk
0:00:30.3]} 36. axb3 {[%clk 0:00:38.5]} 36... Ra2 {[%clk 0:00:31.5]} 37. Rb2
{[%clk 0:00:32.8]} 37... Ra1 {[%clk 0:00:31.2]} 38. Be3 {[%clk 0:00:33.9]} 38...
Kd7 {[%clk 0:00:15.2]} 39. Rd3 {[%clk 0:00:22.4]} 39... c4 {[%clk 0:00:16.2]}
40. Rc3 {[%clk 0:00:20.1]} 40... c5 {[%clk 0:00:16.9]} 41. h4 {[%clk 0:00:15.9]}
41... gxh4 {[%clk 0:00:14.8]} 42. Bxh6 {[%clk 0:00:16.9]} 42... d5 {[%clk
0:00:12.1]} 43. Re3 {[%clk 0:00:04.9]} 43... d4 {[%clk 0:00:11.3]} 44. Rxe6
{[%clk 0:00:05.8]} 44... Kxe6 {[%clk 0:00:12.1]} 45. Bf4 {[%clk 0:00:06.9]}
45... c3 {[%clk 0:00:10.7]} 0-1